fUST/lending_fUST_20250408
["ID","MTS","AMOUNT","RATE_DAILY","PERIOD"]
[357489782,1744085448354,-500.0,0.00021489,2]
[357489783,1744085448364,-500.0,0.00021489,2]
[357489784,1744085448374,-592.68,0.0002149,2]
[357489785,1744085448387,-500.0,0.0002149,2]
[357489786,1744085448397,-500.0,0.0002149,2]
[357489787,1744085448407,-500.0,0.0002149,2]
[357489788,1744085448416,-4479.82,0.0002149,2]
[357489789,1744085448426,-1042.12,0.0002149,2]
[357489790,1744085448435,-500.0,0.0002149,2]
[357489791,1744085448445,-1310.07,0.0002149,2]
[357489792,1744085448456,-2509.09,0.0002149,2]
[357489793,1744085448467,-1641.35,0.0002149,2]
[357489794,1744085448478,-1629.26,0.0002149,2]
[357489795,1744085448488,-1327.88,0.0002149,2]
[357489796,1744085448498,-981.16,0.0002149,2]
[357489797,1744085448508,-500.0,0.0002149,2]
[357489798,1744085448518,-500.0,0.0002149,2]
[357489799,1744085448527,-933.73,0.0002149,2]
[357489800,1744085448538,-1504.35,0.0002149,2]
[357489801,1744085448548,-500.0,0.0002149,2]
[357489802,1744085448558,-500.0,0.0002149,2]
[357489803,1744085448567,-500.0,0.0002149,2]
[357489804,1744085448576,-624.67,0.0002149,2]
[357489805,1744085448586,-907.67,0.0002149,2]
[357489806,1744085448596,-975.11,0.0002149,2]
[357489807,1744085448606,-500.0,0.00021491,2]
[357489808,1744085448616,-500.0,0.00021491,2]
[357489809,1744085448625,-500.0,0.00021491,2]
[357489810,1744085448635,-544.48,0.00021491,2]
[357489811,1744085448646,-500.0,0.00021491,2]
[357489812,1744085448655,-500.0,0.00021491,2]
[357489813,1744085448665,-500.0,0.00021491,2]
[357489814,1744085448675,-500.0,0.00021491,2]
[357489815,1744085448684,-500.0,0.00021491,2]
[357489816,1744085448694,-513.38290688,0.00021491,2]
[357489817,1744085448703,-622.94,0.00021491,2]
[357489818,1744085448713,-185.76001393,0.00021491,2]
[357489819,1744085448723,-500.0,0.00021491,2]
[357489820,1744085448733,-500.0,0.00021491,2]
[357489821,1744085448743,-491.32629685,0.00021491,2]
[357489822,1744085448752,-538.6,0.00021491,2]
[357489823,1744085448762,-500.0,0.00021491,2]
[357489824,1744085448772,-500.0,0.00021491,2]
[357489825,1744085448781,-500.0,0.00021491,2]
[357489826,1744085448791,-1362.0,0.00021491,2]
[357489827,1744085448800,-523.98919345,0.00021491,2]
[357489828,1744085448810,-500.0,0.00021491,2]
[357489829,1744085448820,-500.0,0.00021491,2]
[357489830,1744085448830,-500.0,0.00021491,2]
[357489831,1744085448840,-500.0,0.00021491,2]
[357489832,1744085448850,-500.0,0.00021491,2]
[357489833,1744085448859,-500.0,0.00021491,2]
[357489834,1744085448873,-708.34,0.00021491,2]
[357489835,1744085448883,-832.49,0.00021491,2]
[357489836,1744085448892,-500.0,0.00021491,2]
[357489837,1744085448901,-500.0,0.00021491,2]
[357489838,1744085448911,-500.0,0.00021491,2]
[357489839,1744085448920,-500.0,0.00021491,2]
[357489840,1744085448931,-1829.15,0.00021491,2]
[357489841,1744085448940,-500.0,0.00021491,2]
[357489842,1744085448950,-500.0,0.00021491,2]
[357489843,1744085448959,-500.0,0.00021491,2]
[357489844,1744085448970,-500.0,0.00021491,2]
[357489845,1744085448980,-500.0,0.00021491,2]
[357489846,1744085448990,-500.0,0.00021491,2]
[357489847,1744085448999,-500.0,0.00021491,2]
[357489848,1744085449010,-500.0,0.00021491,2]
[357489849,1744085449020,-500.0,0.00021491,2]
[357489850,1744085449029,-2015.07,0.00021491,2]
[357489851,1744085449039,-512.01244241,0.00021491,2]
[357489852,1744085449049,-500.0,0.00021491,2]
[357489853,1744085449059,-500.0,0.00021491,2]
[357489854,1744085449069,-2630.35,0.00021491,2]
[357489855,1744085449079,-500.0,0.00021491,2]
[357489856,1744085449088,-500.0,0.00021491,2]
[357489857,1744085449098,-332.1388542,0.00021491,2]
[357489858,1744085449108,-500.0,0.00021491,2]
[357489859,1744085449118,-500.0,0.00021491,2]
[357489860,1744085449128,-500.0,0.00021491,2]
[357489861,1744085449137,-1035.73,0.00021491,2]
[357489862,1744085449147,-505.2,0.00021491,2]
[357489863,1744085449158,-500.0,0.00021491,2]
[357489864,1744085449167,-500.0,0.00021491,2]
[357489865,1744085449177,-1494.81,0.00021491,2]
[357489866,1744085449187,-500.0,0.00021491,2]
[357489867,1744085449197,-500.0,0.00021491,2]
[357489868,1744085449207,-500.0,0.00021491,2]
[357489869,1744085449217,-500.0,0.00021491,2]
[357489870,1744085449226,-500.0,0.00021491,2]
[357489871,1744085449236,-500.0,0.00021491,2]
[357489872,1744085449246,-1020.4,0.00021491,2]
[357489873,1744085449255,-500.0,0.00021491,2]
[357489874,1744085449265,-629.28533387,0.00021491,2]
[357489875,1744085449275,-500.0,0.00021491,2]
[357489876,1744085449285,-500.0,0.00021491,2]
[357489877,1744085449295,-500.0,0.00021491,2]
[357489878,1744085449305,-500.0,0.00021491,2]
[357489879,1744085449315,-500.0,0.00021491,2]
[357489880,1744085449324,-500.0,0.00021491,2]
[357489881,1744085449335,-500.0,0.00021491,2]
[357489882,1744085449345,-500.0,0.00021491,2]
[357489883,1744085449355,-1036.88,0.00021491,2]
[357489884,1744085449365,-500.0,0.00021491,2]
[357489885,1744085449375,-500.0,0.00021491,2]
[357489886,1744085449388,-500.0,0.00021491,2]
[357489887,1744085449399,-589.91,0.00021491,2]
[357489888,1744085449409,-976.66,0.00021491,2]
[357489889,1744085449418,-500.0,0.00021491,2]
[357489890,1744085449428,-500.0,0.00021491,2]
[357489891,1744085449437,-500.0,0.00021491,2]
[357489892,1744085449448,-500.0,0.00021491,2]
[357489893,1744085449458,-500.0,0.00021491,2]
[357489894,1744085449468,-500.0,0.00021491,2]
[357489895,1744085449477,-2121.66,0.00021491,2]
[357489896,1744085449487,-549.29015315,0.00021491,2]
[357489897,1744085449497,-500.0,0.00021491,2]
[357489898,1744085449506,-500.0,0.00021491,2]
[357489899,1744085449515,-1005.98,0.00021491,2]
[357489900,1744085449525,-500.0,0.00021491,2]
[357489901,1744085449535,-500.0,0.00021491,2]
[357489902,1744085449544,-500.0,0.00021491,2]
[357489903,1744085449554,-500.0,0.00021491,2]
[357489904,1744085449563,-500.0,0.00021491,2]
[357489905,1744085449573,-500.0,0.00021491,2]
[357489906,1744085449582,-500.0,0.00021491,2]
[357489907,1744085449592,-500.0,0.00021491,2]
[357489908,1744085449602,-740.87,0.00021491,2]
[357489909,1744085449611,-1617.84,0.00021492,2]
[357489910,1744085449622,-1659.02,0.00021492,2]
[357489911,1744085449632,-1177.34,0.00021492,2]
[357489912,1744085449643,-1663.68,0.00021492,2]
[357489913,1744085449652,-500.0,0.00021492,2]
[357489914,1744085449662,-1328.95,0.00021492,2]
[357489915,1744085449672,-500.0,0.00021492,2]
[357489916,1744085449681,-500.0,0.00021492,2]
[357489917,1744085449691,-500.0,0.00021492,2]
[357489918,1744085449700,-1171.6,0.00021492,2]
[357489919,1744085449710,-2650.36,0.00021492,2]
[357489920,1744085449719,-687.52,0.00021492,2]
[357489921,1744085449729,-1084.51,0.00021492,2]
[357489922,1744085449738,-500.0,0.00021492,2]
[357489923,1744085449748,-8181.65,0.00021492,2]
[357489924,1744085449758,-1407.26,0.00021492,2]
[357489925,1744085449767,-188.0,0.000215,2]
[357489926,1744085449776,-454.47552344,0.00021562,2]
[357489927,1744085449786,-500.0,0.00021573,2]
[357489928,1744085449795,-500.0,0.00021591,2]
[357489929,1744085449804,-500.0,0.00021591,2]
[357489930,1744085449814,-512.36,0.00021591,2]
[357489931,1744085449824,-500.0,0.00021591,2]
[357489932,1744085449833,-500.0,0.00021591,2]
[357489933,1744085449842,-500.0,0.00021591,2]
[357489934,1744085449852,-500.0,0.00021591,2]
[357489935,1744085449862,-1218.72,0.00021591,2]
[357489936,1744085449872,-500.0,0.00021591,2]
[357489937,1744085449882,-500.0,0.00021591,2]
[357489938,1744085449892,-500.0,0.00021591,2]
[357489939,1744085449902,-988.61,0.00021591,2]
[357489940,1744085449912,-930.33,0.00021591,2]
[357489941,1744085449921,-627.24,0.00021591,2]
[357489942,1744085449930,-1130.52,0.00021591,2]
[357489943,1744085449939,-1098.58,0.00021591,2]
[357489944,1744085449949,-500.0,0.00021591,2]
[357489945,1744085449959,-500.0,0.00021591,2]
[357489946,1744085449968,-500.0,0.00021591,2]
[357489947,1744085449977,-500.0,0.00021591,2]
[357489948,1744085449987,-500.0,0.00021591,2]
[357489949,1744085449997,-663.44,0.00021591,2]
[357489950,1744085450006,-500.0,0.00021591,2]
[357489951,1744085450015,-923.93,0.00021591,2]
[357489952,1744085450025,-500.0,0.00021591,2]
[357489953,1744085450034,-1966.95,0.00021591,2]
[357489954,1744085450043,-603.97,0.00021591,2]
[357489955,1744085450053,-668.36,0.00021591,2]
[357489956,1744085450062,-1092.02,0.00021591,2]
[357489957,1744085450071,-500.0,0.00021591,2]
[357489958,1744085450080,-1015.97,0.00021592,2]
[357489959,1744085450090,-543.50973022,0.00021592,2]
[357489960,1744085450099,-500.0,0.00021592,2]
[357489961,1744085450109,-861.69,0.00021592,2]
[357489962,1744085450119,-500.0,0.00021592,2]
[357489963,1744085450129,-390.41843553,0.00021592,2]
[357489964,1744085450138,-500.0,0.00021592,2]
[357489965,1744085450148,-500.0,0.00021592,2]
[357489966,1744085450158,-500.0,0.00021592,2]
[357489967,1744085450167,-500.0,0.00021592,2]
[357489968,1744085450177,-500.0,0.00021592,2]
[357489969,1744085450186,-500.0,0.00021592,2]
[357489970,1744085450195,-500.0,0.00021592,2]
[357489971,1744085450205,-500.0,0.00021592,2]
[357489972,1744085450215,-500.0,0.00021592,2]
[357489973,1744085450224,-500.0,0.00021592,2]
[357489974,1744085450234,-500.0,0.00021592,2]
[357489975,1744085450244,-500.0,0.00021592,2]
[357489976,1744085450253,-501.8282301,0.00021592,2]
[357489977,1744085450263,-500.0,0.00021592,2]
[357489978,1744085450272,-500.0,0.00021592,2]
[357489979,1744085450282,-3425.24,0.00021592,2]
[357489980,1744085450291,-500.0,0.00021592,2]
[357489981,1744085450431,-500.0,0.00021592,2]
[357489982,1744085450443,-500.1809741,0.00021592,2]
[357489983,1744085450456,-500.0,0.00021592,2]
[357489984,1744085450466,-500.0,0.00021592,2]
[357489985,1744085450476,-509.66325737,0.00021592,2]
[357489986,1744085450486,-500.0,0.00021592,2]
[357489987,1744085450495,-500.0,0.00021592,2]
[357489988,1744085450505,-500.0,0.00021592,2]
[357489989,1744085450515,-500.0,0.00021592,2]
[357489990,1744085450525,-500.0,0.00021592,2]
[357489991,1744085450535,-500.0,0.00021592,2]
[357489992,1744085450545,-500.0,0.00021592,2]
[357489993,1744085450555,-500.0,0.00021592,2]
[357489994,1744085450564,-500.0,0.00021592,2]
[357489995,1744085450574,-500.0,0.00021592,2]
[357489996,1744085450584,-387.18960644,0.00021592,2]
[357489997,1744085450594,-500.0,0.00021592,2]
[357489998,1744085450603,-500.0,0.00021592,2]
[357489999,1744085450614,-500.0,0.00021592,2]
[357490000,1744085450623,-513.44358686,0.00021592,2]
[357490001,1744085450634,-500.0,0.00021592,2]
[357490002,1744085450643,-554.1,0.00021592,2]
[357490003,1744085450653,-1034.38,0.00021592,2]
[357490004,1744085450662,-500.0,0.00021592,2]
[357490005,1744085450672,-500.0,0.00021592,2]
[357490006,1744085450682,-358.0,0.00021592,2]
[357490007,1744085450691,-422.12353745,0.00021592,2]
[357490008,1744085450701,-500.0,0.00021593,2]
[357490009,1744085450711,-500.0,0.00021593,2]
[357490010,1744085450720,-500.0,0.00021593,2]
[357490011,1744085450729,-500.0,0.00021593,2]
[357490012,1744085450739,-500.0,0.00021593,2]
[357490013,1744085450749,-500.0,0.00021593,2]
[357490014,1744085450758,-500.0,0.00021593,2]
[357490015,1744085450767,-500.0,0.00021593,2]
[357490016,1744085450777,-500.0,0.00021594,2]
[357490017,1744085450787,-34200.21093794,0.00021649,2]
[357490018,1744085450797,-154.0,0.00021671,2]
[357490019,1744085450807,-500.0,0.00021763,2]
[357490020,1744085450816,-500.0,0.00021763,2]
[357490021,1744085450826,-592.68,0.00021764,2]
[357490022,1744085450835,-500.0,0.00021764,2]
[357490023,1744085450845,-500.0,0.00021764,2]
[357490024,1744085450855,-500.0,0.00021764,2]
[357490025,1744085450864,-4479.82,0.00021764,2]
[357490026,1744085450874,-1042.12,0.00021764,2]
[357490027,1744085450883,-563.07982288,0.00021764,2]
[357490028,1744085450893,-1310.07,0.00021764,2]
[357490029,1744085450902,-2509.09,0.00021764,2]
[357490030,1744085450911,-1641.35,0.00021764,2]
[357490031,1744085450921,-1629.26,0.00021764,2]
[357490032,1744085450930,-1327.88,0.00021764,2]
[357490033,1744085450940,-981.16,0.00021764,2]
[357490034,1744085450949,-500.0,0.00021764,2]
[357490035,1744085450958,-500.0,0.00021764,2]
[357490036,1744085450968,-933.73,0.00021764,2]
[357490037,1744085450977,-1504.35,0.00021764,2]
[357490038,1744085450986,-500.0,0.00021764,2]
[357490039,1744085450996,-500.0,0.00021764,2]
[357490040,1744085451005,-500.0,0.00021764,2]
[357490041,1744085451015,-624.67,0.00021764,2]
[357490042,1744085451025,-907.67,0.00021764,2]
[357490043,1744085451035,-975.11,0.00021764,2]
[357490044,1744085451045,-500.0,0.00021765,2]
[357490045,1744085451054,-500.0,0.00021765,2]
[357490046,1744085451064,-500.0,0.00021765,2]
[357490047,1744085451073,-544.48,0.00021765,2]
[357490048,1744085451083,-500.0,0.00021765,2]
[357490049,1744085451093,-500.0,0.00021765,2]
[357490050,1744085451103,-500.0,0.00021765,2]
[357490051,1744085451112,-500.0,0.00021765,2]
[357490052,1744085451122,-500.0,0.00021765,2]
[357490053,1744085451132,-622.94,0.00021765,2]
[357490054,1744085451142,-500.0,0.00021765,2]
[357490055,1744085451151,-510.90305997,0.00021765,2]
[357490056,1744085451161,-538.6,0.00021765,2]
[357490057,1744085451171,-500.0,0.00021765,2]
[357490058,1744085451181,-500.0,0.00021765,2]
[357490059,1744085451191,-500.0,0.00021765,2]
[357490060,1744085451200,-1362.0,0.00021765,2]
[357490061,1744085451210,-287.45188397,0.00021765,2]
[357490062,1744085451219,-500.0,0.00021765,2]
[357490063,1744085451229,-500.0,0.00021765,2]
[357490064,1744085451238,-500.0,0.00021765,2]
[357490065,1744085451247,-500.0,0.00021765,2]
[357490066,1744085451257,-500.0,0.00021765,2]
[357490067,1744085451266,-708.34,0.00021765,2]
[357490068,1744085451276,-832.49,0.00021765,2]
[357490069,1744085451285,-500.0,0.00021765,2]
[357490070,1744085451295,-500.0,0.00021765,2]
[357490071,1744085451305,-500.0,0.00021765,2]
[357490072,1744085451314,-500.0,0.00021765,2]
[357490073,1744085451324,-1829.15,0.00021765,2]
[357490074,1744085451334,-158.59495579,0.00021765,2]
[357490075,1744085451343,-500.0,0.00021765,2]
[357490076,1744085451354,-500.0,0.00021765,2]
[357490077,1744085451364,-500.0,0.00021765,2]
[357490078,1744085451373,-500.0,0.00021765,2]
[357490079,1744085451387,-500.0,0.00021765,2]
[357490080,1744085451397,-500.0,0.00021765,2]
[357490081,1744085451407,-500.0,0.00021765,2]
[357490082,1744085451415,-500.0,0.00021765,2]
[357490083,1744085451426,-2015.07,0.00021765,2]
[357490084,1744085451436,-500.0,0.00021765,2]
[357490085,1744085451446,-500.0,0.00021765,2]
[357490086,1744085451456,-2630.35,0.00021765,2]
[357490087,1744085451467,-500.0,0.00021765,2]
[357490088,1744085451476,-500.0,0.00021765,2]
[357490089,1744085451487,-500.0,0.00021765,2]
[357490090,1744085451497,-500.0,0.00021765,2]
[357490091,1744085451507,-409.2875185,0.00021765,2]
[357490092,1744085451517,-1035.73,0.00021765,2]
[357490093,1744085451526,-505.2,0.00021765,2]
[357490094,1744085451536,-500.0,0.00021765,2]
[357490095,1744085451546,-500.0,0.00021765,2]
[357490096,1744085451555,-1494.81,0.00021765,2]
[357490097,1744085451566,-500.0,0.00021765,2]
[357490098,1744085451575,-500.0,0.00021765,2]
[357490099,1744085451585,-500.0,0.00021765,2]
[357490100,1744085451595,-500.0,0.00021765,2]
[357490101,1744085451605,-500.0,0.00021765,2]
[357490102,1744085451615,-500.0,0.00021765,2]
[357490103,1744085451625,-1020.4,0.00021765,2]
[357490104,1744085451635,-500.0,0.00021765,2]
[357490105,1744085451645,-500.0,0.00021765,2]
[357490106,1744085451656,-500.0,0.00021765,2]
[357490107,1744085451666,-500.0,0.00021765,2]
[357490108,1744085451676,-500.0,0.00021765,2]
[357490109,1744085451686,-500.0,0.00021765,2]
[357490110,1744085451695,-500.0,0.00021765,2]
[357490111,1744085451705,-500.0,0.00021765,2]
[357490112,1744085451715,-500.0,0.00021765,2]
[357490113,1744085451725,-1036.88,0.00021765,2]
[357490114,1744085451734,-500.0,0.00021765,2]
[357490115,1744085451744,-500.0,0.00021765,2]
[357490116,1744085451754,-500.0,0.00021765,2]
[357490117,1744085451763,-589.91,0.00021765,2]
[357490118,1744085451773,-976.66,0.00021765,2]
[357490119,1744085451783,-500.0,0.00021765,2]
[357490120,1744085451793,-500.0,0.00021765,2]
[357490121,1744085451803,-500.0,0.00021765,2]
[357490122,1744085451812,-500.0,0.00021765,2]
[357490123,1744085451823,-500.0,0.00021765,2]
[357490124,1744085451833,-500.0,0.00021765,2]
[357490125,1744085451842,-2121.66,0.00021765,2]
[357490126,1744085451852,-500.0,0.00021765,2]
[357490127,1744085451862,-500.0,0.00021765,2]
[357490128,1744085451871,-1005.98,0.00021765,2]
[357490129,1744085451881,-500.0,0.00021765,2]
[357490130,1744085451891,-500.0,0.00021765,2]
[357490131,1744085451900,-500.0,0.00021765,2]
[357490132,1744085451910,-503.47069159,0.00021765,2]
[357490133,1744085451920,-500.0,0.00021765,2]
[357490134,1744085451929,-500.0,0.00021765,2]
[357490135,1744085451939,-500.0,0.00021765,2]
[357490136,1744085451948,-500.0,0.00021765,2]
[357490137,1744085451958,-740.87,0.00021765,2]
[357490138,1744085451968,-1617.84,0.00021766,2]
[357490139,1744085451978,-1659.02,0.00021766,2]
[357490140,1744085451988,-1177.34,0.00021766,2]
[357490141,1744085451998,-1663.68,0.00021766,2]
[357490142,1744085452007,-500.0,0.00021766,2]
[357490143,1744085452017,-1328.95,0.00021766,2]
[357490144,1744085452027,-500.0,0.00021766,2]
[357490145,1744085452037,-500.0,0.00021766,2]
[357490146,1744085452046,-500.0,0.00021766,2]
[357490147,1744085452055,-1171.6,0.00021766,2]
[357490148,1744085452065,-2650.36,0.00021766,2]
[357490149,1744085452075,-687.52,0.00021766,2]
[357490150,1744085452085,-1084.51,0.00021766,2]
[357490151,1744085452094,-500.0,0.00021766,2]
[357490152,1744085452104,-235.22656,0.00021766,2]
[357490153,1744085452114,-8181.65,0.00021766,2]
[357490154,1744085452123,-151.0,0.00021766,2]
[357490155,1744085452132,-521.80983,0.00021766,2]
[357490156,1744085452143,-521.80983,0.00021766,2]
[357490157,1744085452152,-1407.26,0.00021766,2]
[357490158,1744085452162,-500.0,0.00021865,2]
[357490159,1744085452172,-500.0,0.00021865,2]
[357490160,1744085452182,-512.36,0.00021865,2]
[357490161,1744085452191,-500.0,0.00021865,2]
[357490162,1744085452201,-500.0,0.00021865,2]
[357490163,1744085452210,-500.0,0.00021865,2]
[357490164,1744085452220,-500.0,0.00021865,2]
[357490165,1744085452229,-1218.72,0.00021865,2]
[357490166,1744085452239,-310.50306711,0.00021865,2]
[357490167,1744085452248,-500.0,0.00021865,2]
[357490168,1744085452258,-500.0,0.00021865,2]
[357490169,1744085452267,-988.61,0.00021865,2]
[357490170,1744085452276,-930.33,0.00021865,2]
[357490171,1744085452286,-627.24,0.00021865,2]
[357490172,1744085452296,-151.0,0.00021865,2]
[357490173,1744085452305,-151.0,0.00021865,2]
[357490174,1744085452314,-1130.52,0.00021865,2]
[357490175,1744085452324,-1098.58,0.00021865,2]
[357490176,1744085452333,-500.0,0.00021865,2]
[357490177,1744085452342,-151.0,0.00021865,2]
[357490178,1744085452352,-151.0,0.00021865,2]
[357490179,1744085452362,-151.0,0.00021865,2]
[357490180,1744085452371,-291.11115,0.00021865,2]
[357490181,1744085452384,-1702.022067,0.00021865,2]
[357490182,1744085452393,-1702.022067,0.00021865,2]
[357490183,1744085452403,-500.0,0.00021865,2]
[357490184,1744085452413,-500.0,0.00021865,2]
[357490185,1744085452423,-500.0,0.00021865,2]
[357490186,1744085452432,-500.0,0.00021865,2]
[357490187,1744085452442,-151.0,0.00021865,2]
[357490188,1744085452452,-663.44,0.00021865,2]
[357490189,1744085452462,-151.0,0.00021865,2]
[357490190,1744085452472,-500.0,0.00021865,2]
[357490191,1744085452482,-923.93,0.00021865,2]
[357490192,1744085452491,-500.0,0.00021865,2]
[357490193,1744085452502,-151.0,0.00021865,2]
[357490194,1744085452511,-1966.95,0.00021865,2]
[357490195,1744085452521,-155.0,0.00021865,2]
[357490196,1744085452531,-603.97,0.00021865,2]
[357490197,1744085452541,-261.827206,0.00021865,2]
[357490198,1744085452550,-151.0,0.00021865,2]
[357490199,1744085452560,-668.36,0.00021865,2]
[357490200,1744085452570,-261.827206,0.00021865,2]
[357490201,1744085452579,-151.0,0.00021865,2]
[357490202,1744085452589,-200.035634,0.00021865,2]
[357490203,1744085452598,-200.035634,0.00021865,2]
[357490204,1744085452608,-1092.02,0.00021865,2]
[357490205,1744085452619,-500.0,0.00021865,2]
[357490206,1744085452629,-1015.97,0.00021866,2]
[357490207,1744085452638,-500.0,0.00021866,2]
[357490208,1744085452648,-861.69,0.00021866,2]
[357490209,1744085452657,-500.0,0.00021866,2]
[357490210,1744085452667,-503.39729275,0.00021866,2]
[357490211,1744085452676,-500.0,0.00021866,2]
[357490212,1744085452686,-500.0,0.00021866,2]
[357490213,1744085452695,-500.0,0.00021866,2]
[357490214,1744085452704,-500.0,0.00021866,2]
[357490215,1744085452715,-500.0,0.00021866,2]
[357490216,1744085452724,-500.0,0.00021866,2]
[357490217,1744085452734,-500.0,0.00021866,2]
[357490218,1744085452744,-500.0,0.00021866,2]
[357490219,1744085452753,-500.0,0.00021866,2]
[357490220,1744085452762,-500.0,0.00021866,2]
[357490221,1744085452771,-500.0,0.00021866,2]
[357490222,1744085452780,-500.0,0.00021866,2]
[357490223,1744085452790,-500.0,0.00021866,2]
[357490224,1744085452799,-3425.24,0.00021866,2]
[357490225,1744085452808,-500.0,0.00021866,2]
[357490226,1744085452817,-500.0,0.00021866,2]
[357490227,1744085452827,-573.47850502,0.00021866,2]
[357490228,1744085452837,-500.0,0.00021866,2]
[357490229,1744085452847,-500.0,0.00021866,2]
[357490230,1744085452856,-185.51951348,0.00021866,2]
[357490231,1744085452866,-500.0,0.00021866,2]
[357490232,1744085452875,-500.0,0.00021866,2]
[357490233,1744085452884,-500.0,0.00021866,2]
[357490234,1744085452894,-500.0,0.00021866,2]
[357490235,1744085452903,-151.0,0.00021866,2]
[357490236,1744085452913,-190.802693,0.00021866,2]
[357490237,1744085452923,-190.802693,0.00021866,2]
[357490238,1744085452932,-500.0,0.00021866,2]
[357490239,1744085452941,-500.0,0.00021866,2]
[357490240,1744085452950,-500.0,0.00021866,2]
[357490241,1744085452960,-500.0,0.00021866,2]
[357490242,1744085452969,-500.0,0.00021866,2]
[357490243,1744085452978,-500.0,0.00021866,2]
[357490244,1744085452987,-500.0,0.00021866,2]
[357490245,1744085452997,-554.1,0.00021866,2]
[357490246,1744085453006,-1034.38,0.00021866,2]
[357490247,1744085453015,-412.37280438,0.00021866,2]
[357490248,1744085453025,-500.0,0.00021866,2]
[357490249,1744085453035,-500.0,0.00021867,2]
[357490250,1744085453045,-174.643038,0.00021867,2]
[357490251,1744085453054,-500.0,0.00021867,2]
[357490252,1744085453063,-170.115565,0.00021867,2]
[357490253,1744085453073,-151.183217,0.00021867,2]
[357490254,1744085453083,-170.115565,0.00021867,2]
[357490255,1744085453092,-151.0,0.00021867,2]
[357490256,1744085453101,-500.0,0.00021867,2]
[357490257,1744085453110,-500.0,0.00021867,2]
[357490258,1744085453255,-500.0,0.00021867,2]
[357490259,1744085453266,-517.35788877,0.00021867,2]
[357490260,1744085453275,-500.0,0.00021867,2]
[357490261,1744085453285,-500.0,0.00021867,2]
[357490262,1744085453294,-500.0,0.00021868,2]
[357490263,1744085453304,-200.0,0.00021917,2]
[357490264,1744085453313,-374.1830412,0.00021918,2]
[357490265,1744085453323,-207.4,0.00022028,2]
[357490266,1744085453332,-500.0,0.00022037,2]
[357490267,1744085453342,-500.0,0.00022037,2]
[357490268,1744085453351,-592.68,0.00022038,2]
[357490269,1744085453363,-500.0,0.00022038,2]
[357490270,1744085453372,-500.0,0.00022038,2]
[357490271,1744085453385,-500.0,0.00022038,2]
[357490272,1744085453394,-4479.82,0.00022038,2]
[357490273,1744085453403,-1042.12,0.00022038,2]
[357490274,1744085453413,-1310.07,0.00022038,2]
[357490275,1744085453422,-2509.09,0.00022038,2]
[357490276,1744085453433,-1641.35,0.00022038,2]
[357490277,1744085453443,-1629.26,0.00022038,2]
[357490278,1744085453453,-1327.88,0.00022038,2]
[357490279,1744085453464,-981.16,0.00022038,2]
[357490280,1744085453474,-500.0,0.00022038,2]
[357490281,1744085453484,-500.0,0.00022038,2]